fUSD/lending_fUSD_20240913
["ID","MTS","AMOUNT","RATE_DAILY","PERIOD"]
[337924701,1726207844598,-7411.59,0.00013228,2]
[337924703,1726207844607,-6205.84,0.00013228,2]
[337924705,1726207844616,-1195.4,0.00013228,2]
[337924707,1726207844626,-693.82,0.00013228,2]
[337924709,1726207844635,-6244.27,0.00013228,2]
[337924711,1726207844645,-500.0,0.00013228,2]
[337924713,1726207844653,-8864.5,0.00013228,2]
[337924714,1726207844662,-667.48,0.00013228,2]
[337924716,1726207844671,-1060.76,0.00013228,2]
[337924718,1726207844680,-897.04,0.00013228,2]
[337924720,1726207844689,-535.0,0.00013229,2]
[337924722,1726207844698,-1814.79,0.00013229,2]
[337924723,1726207844707,-500.0,0.00013229,2]
[337924725,1726207844717,-500.0,0.00013229,2]
[337924727,1726207844726,-500.0,0.00013229,2]
[337924729,1726207844736,-500.0,0.00013229,2]
[337924730,1726207844745,-500.0,0.00013229,2]
[337924732,1726207844755,-954.6,0.00013229,2]
[337924734,1726207844764,-2167.77,0.00013229,2]
[337924736,1726207844773,-500.0,0.00013229,2]
[337924738,1726207844782,-1160.48,0.00013229,2]
[337924740,1726207844791,-500.0,0.00013229,2]
[337924741,1726207844800,-500.0,0.00013229,2]
[337924743,1726207844809,-1233.86,0.00013229,2]
[337924745,1726207844818,-500.0,0.00013229,2]
[337924747,1726207844827,-500.0,0.00013229,2]
[337924749,1726207844836,-2268.65,0.00013229,2]
[337924750,1726207844846,-500.0,0.00013229,2]
[337924752,1726207844855,-500.0,0.00013229,2]
[337924754,1726207844864,-721.99,0.00013229,2]
[337924756,1726207844873,-638.65,0.00013229,2]
[337924758,1726207844882,-580.24,0.00013229,2]
[337924760,1726207844892,-1859.7,0.00013229,2]
[337924761,1726207844901,-500.0,0.00013229,2]
[337924763,1726207844911,-2169.41,0.00013229,2]
[337924765,1726207844920,-500.0,0.00013229,2]
[337924767,1726207844929,-500.0,0.00013229,2]
[337924769,1726207844938,-500.0,0.00013229,2]
[337924770,1726207844947,-500.0,0.00013229,2]
[337924772,1726207844957,-500.0,0.00013229,2]
[337924774,1726207844966,-500.0,0.00013229,2]
[337924776,1726207844975,-500.0,0.00013229,2]
[337924778,1726207844985,-500.0,0.00013229,2]
[337924779,1726207844994,-2454.4,0.00013229,2]
[337924781,1726207845003,-1762.89,0.00013229,2]
[337924783,1726207845012,-500.0,0.00013229,2]
[337924785,1726207845021,-425.79449394,0.00013229,2]
[337924786,1726207845030,-2427.84,0.00013229,2]
[337924788,1726207845040,-527.98,0.00013229,2]
[337924790,1726207845048,-500.0,0.00013229,2]
[337924792,1726207845058,-500.0,0.00013229,2]
[337924794,1726207845067,-249.220234,0.00013229,2]
[337924795,1726207845076,-500.0,0.00013229,2]
[337924797,1726207845085,-2449.58,0.00013229,2]
[337924799,1726207845094,-616.84,0.00013229,2]
[337924801,1726207845103,-500.0,0.00013229,2]
[337924803,1726207845112,-500.0,0.00013229,2]
[337924804,1726207845122,-1200.04,0.00013229,2]
[337924806,1726207845131,-500.0,0.00013229,2]
[337924808,1726207845140,-500.0,0.00013229,2]
[337924810,1726207845150,-500.0,0.00013229,2]
[337924812,1726207845158,-500.0,0.00013229,2]
[337924813,1726207845168,-500.0,0.00013229,2]
[337924815,1726207845176,-615.76810243,0.00013229,2]
[337924817,1726207845186,-500.0,0.00013229,2]
[337924819,1726207845194,-1843.23,0.00013229,2]
[337924821,1726207845203,-1049.64,0.00013229,2]
[337924823,1726207845213,-500.0,0.00013229,2]
[337924824,1726207845222,-500.0,0.00013229,2]
[337924826,1726207845231,-716.26,0.00013229,2]
[337924828,1726207845240,-1314.98,0.00013229,2]
[337924830,1726207845249,-706.12,0.00013229,2]
[337924832,1726207845258,-249.6235735,0.00013229,2]
[337924834,1726207845268,-286.92543054,0.00013229,2]
[337924836,1726207845278,-2731.45,0.00013229,2]
[337924837,1726207845287,-1334.63,0.00013229,2]
[337924839,1726207845296,-500.0,0.00013229,2]
[337924841,1726207845305,-3186.47,0.00013229,2]
[337924843,1726207845314,-500.0,0.00013229,2]
[337924845,1726207845327,-1915.16,0.00013229,2]
[337924847,1726207845336,-968.58,0.00013229,2]
[337924848,1726207845345,-500.0,0.00013229,2]
[337924850,1726207845354,-500.0,0.00013229,2]
[337924852,1726207845363,-500.0,0.00013229,2]
[337924854,1726207845372,-500.24850536,0.00013229,2]
[337924855,1726207845381,-1992.66,0.00013229,2]
[337924856,1726207845391,-565.35,0.00013229,2]
[337924857,1726207845400,-500.0,0.00013229,2]
[337924858,1726207845409,-500.0,0.00013229,2]
[337924859,1726207845418,-500.0,0.00013229,2]
[337924860,1726207845427,-1809.16,0.00013229,2]
[337924861,1726207845436,-500.0,0.00013229,2]
[337924862,1726207845445,-500.0,0.00013229,2]
[337924863,1726207845454,-1266.41,0.00013229,2]
[337924864,1726207845463,-2970.17,0.00013229,2]
[337924865,1726207845472,-2176.07,0.00013229,2]
[337924866,1726207845481,-500.0,0.00013229,2]
[337924867,1726207845490,-500.0,0.00013229,2]
[337924868,1726207845499,-1275.59,0.00013229,2]
[337924869,1726207845507,-500.0,0.00013229,2]
[337924870,1726207845516,-500.0,0.00013229,2]
[337924871,1726207845529,-500.0,0.00013229,2]
[337924872,1726207845538,-810.78,0.00013229,2]
[337924873,1726207845547,-1552.2,0.00013229,2]
[337924874,1726207845556,-595.76,0.00013229,2]
[337924875,1726207845565,-1356.18,0.00013229,2]
[337924876,1726207845574,-2622.06,0.00013229,2]
[337924878,1726207845583,-2293.56,0.00013229,2]
[337924879,1726207845592,-500.61,0.00013229,2]
[337924880,1726207845601,-500.0,0.00013229,2]
[337924882,1726207845610,-1173.88,0.00013229,2]
[337924884,1726207845620,-1137.68,0.00013229,2]
[337924886,1726207845629,-2568.68,0.00013229,2]
[337924888,1726207845638,-500.0,0.00013229,2]
[337924889,1726207845647,-1616.09,0.00013229,2]
[337924891,1726207845655,-733.75,0.00013229,2]
[337924893,1726207845665,-1316.26,0.00013229,2]
[337924895,1726207845674,-717.99,0.00013229,2]
[337924897,1726207845682,-500.0,0.00013229,2]
[337924899,1726207845692,-1443.26,0.00013229,2]
[337924901,1726207845701,-500.0,0.00013229,2]
[337924903,1726207845710,-1309.7,0.00013229,2]
[337924905,1726207845719,-3118.53,0.00013229,2]
[337924907,1726207845728,-789.58,0.00013229,2]
[337924909,1726207845738,-1708.55,0.00013229,2]
[337924910,1726207845747,-2257.53,0.00013229,2]
[337924912,1726207845756,-500.0,0.00013229,2]
[337924914,1726207845765,-500.0,0.00013229,2]
[337924916,1726207845776,-1161.7,0.00013229,2]
[337924918,1726207845786,-986.29,0.00013229,2]
[337924920,1726207845795,-500.0,0.00013229,2]
[337924922,1726207845805,-500.0,0.00013229,2]
[337924924,1726207845814,-1048.72,0.00013229,2]
[337924926,1726207845823,-500.0,0.00013229,2]
[337924928,1726207845832,-1895.67,0.00013229,2]
[337924930,1726207845841,-6468.98,0.00013229,2]
[337924932,1726207845851,-500.0,0.00013229,2]
[337924934,1726207845860,-500.0,0.00013229,2]
[337924936,1726207845869,-500.0,0.00013229,2]
[337924938,1726207845879,-500.0,0.00013229,2]
[337924940,1726207845889,-500.0,0.00013229,2]
[337924943,1726207845898,-205.51582596,0.00013229,2]
[337924945,1726207845908,-1525.68,0.00013229,2]
[337924947,1726207845917,-500.0,0.00013229,2]
[337924949,1726207845927,-2115.23,0.00013229,2]
[337924951,1726207845936,-1856.39,0.00013229,2]
[337924953,1726207845945,-1368.05,0.00013229,2]
[337924955,1726207845954,-500.0,0.00013229,2]
[337924957,1726207845964,-500.0,0.00013229,2]
[337924958,1726207845973,-873.78,0.00013229,2]
[337924960,1726207845982,-596.94,0.00013229,2]
[337924962,1726207845991,-874.05,0.00013229,2]
[337924964,1726207846000,-500.0,0.00013229,2]
[337924966,1726207846009,-672.26,0.00013229,2]
[337924969,1726207846019,-4238.17,0.00013229,2]
[337924972,1726207846027,-961.06,0.00013229,2]
[337924975,1726207846037,-500.0,0.00013229,2]
[337924978,1726207846046,-500.0,0.00013229,2]
[337924981,1726207846055,-3098.55,0.00013229,2]
[337924983,1726207846065,-500.0,0.00013229,2]
[337924985,1726207846075,-500.0,0.00013229,2]
[337924987,1726207846085,-2349.07,0.00013229,2]
[337924989,1726207846095,-500.0,0.00013229,2]
[337924991,1726207846104,-852.44,0.00013229,2]
[337924993,1726207846113,-4294.23,0.00013229,2]
[337924995,1726207846122,-1221.18,0.00013229,2]
[337924997,1726207846131,-3008.39,0.00013229,2]
[337925000,1726207846140,-970.89,0.00013229,2]
[337925003,1726207846149,-639.9,0.00013229,2]
[337925006,1726207846159,-52989.22,0.00013229,2]
[337925009,1726207846168,-2603.55,0.00013229,2]
[337925011,1726207846177,-500.0,0.00013229,2]
[337925014,1726207846186,-531.44,0.00013229,2]
[337925017,1726207846195,-500.0,0.00013229,2]
[337925019,1726207846204,-500.0,0.00013229,2]
[337925021,1726207846214,-500.0,0.00013229,2]
[337925023,1726207846223,-2296.17,0.00013229,2]
[337925025,1726207846232,-1260.77,0.00013229,2]
[337925027,1726207846242,-3637.82,0.00013229,2]
[337925030,1726207846254,-589.37,0.00013229,2]
[337925032,1726207846263,-500.0,0.00013229,2]
[337925034,1726207846274,-500.0,0.00013229,2]
[337925036,1726207846288,-2200.06,0.00013229,2]
[337925038,1726207846297,-1993.3,0.00013229,2]
[337925039,1726207846306,-916.57,0.00013229,2]
[337925041,1726207846315,-4126.05,0.00013229,2]
[337925043,1726207846329,-2309.1,0.00013229,2]
[337925045,1726207846339,-2285.15,0.00013229,2]
[337925047,1726207846348,-750.37,0.00013229,2]
[337925049,1726207846357,-1262.6,0.00013229,2]
[337925051,1726207846366,-1608.17,0.00013229,2]
[337925053,1726207846375,-1355.42,0.00013229,2]
[337925055,1726207846385,-922.17,0.00013229,2]
[337925057,1726207846395,-4241.39,0.00013229,2]
[337925059,1726207846405,-1119.11,0.00013229,2]
[337925061,1726207846415,-3010.58,0.00013229,2]
[337925063,1726207846424,-2961.85,0.00013229,2]
[337925065,1726207846433,-3606.13,0.00013229,2]
[337925067,1726207846443,-5372.06,0.00013229,2]
[337925069,1726207846452,-571.19,0.00013229,2]
[337925071,1726207846461,-500.0,0.00013229,2]
[337925073,1726207846470,-981.11,0.00013229,2]
[337925075,1726207846479,-914.29,0.00013229,2]
[337925077,1726207846488,-500.0,0.00013229,2]
[337925079,1726207846497,-785.15,0.00013229,2]
[337925081,1726207846507,-1266.26,0.00013229,2]
[337925083,1726207846517,-500.0,0.00013229,2]
[337925085,1726207846527,-500.0,0.00013229,2]
[337925087,1726207846537,-500.0,0.00013229,2]
[337925089,1726207846546,-34284.25,0.00013229,2]
[337925091,1726207846555,-6552.28,0.00013229,2]
[337925093,1726207846564,-500.0,0.00013229,2]
[337925095,1726207846574,-178.35907424,0.00013229,2]
[337925097,1726207846583,-3396.17,0.00013229,2]
[337925099,1726207846593,-5048.0,0.00013229,2]
[337925101,1726207846604,-2532.63,0.00013229,2]
[337925103,1726207846613,-966.85,0.00013229,2]
[337925105,1726207846623,-3180.3,0.00013229,2]
[337925106,1726207846631,-2150.36,0.00013229,2]
[337925108,1726207846641,-2705.79,0.00013229,2]
[337925110,1726207846650,-906.34,0.00013229,2]
[337925112,1726207846659,-2247.98,0.00013229,2]
[337925114,1726207846668,-500.0,0.00013229,2]
[337925116,1726207846677,-550.95,0.00013229,2]
[337925118,1726207846687,-11539.97,0.00013229,2]
[337925120,1726207846698,-4848.46,0.00013229,2]
[337925122,1726207846708,-3007.15,0.00013229,2]
[337925124,1726207846717,-2177.1,0.00013229,2]
[337925126,1726207846726,-2051.18,0.00013229,2]
[337925128,1726207846736,-2518.74,0.00013229,2]
[337925130,1726207846745,-544.78,0.00013229,2]
[337925132,1726207846755,-500.0,0.00013229,2]
[337925134,1726207846764,-2426.19,0.00013229,2]
[337925136,1726207846774,-2498.51,0.00013229,2]
[337925138,1726207846783,-3383.13,0.00013229,2]
[337925140,1726207846792,-2318.53,0.00013229,2]
[337925142,1726207846801,-3188.29,0.00013229,2]
[337925144,1726207846812,-6251.33,0.00013229,2]
[337925146,1726207846821,-1005.33,0.00013229,2]
[337925148,1726207846830,-3388.78,0.00013229,2]
[337925150,1726207846839,-3007.82,0.00013229,2]
[337925152,1726207846849,-2723.58,0.00013229,2]
[337925154,1726207846858,-1216.59,0.00013229,2]
[337925156,1726207846867,-500.0,0.00013229,2]
[337925158,1726207846876,-500.0,0.00013229,2]
[337925160,1726207846885,-1258.64304544,0.0001323,2]
[337925162,1726207846896,-500.0,0.0001323,2]
[337925164,1726207846905,-1597.26,0.0001323,2]
[337925165,1726207846914,-1123.5,0.0001323,2]
[337925167,1726207846923,-4459.04,0.0001323,2]
[337925169,1726207846932,-1655.33,0.0001323,2]
[337925171,1726207846940,-500.0,0.0001323,2]
[337925173,1726207846950,-2236.93,0.0001323,2]
[337925175,1726207846959,-2178.02,0.0001323,2]
[337925177,1726207846968,-1667.22,0.0001323,2]
[337925179,1726207846977,-2180.98,0.0001323,2]
[337925181,1726207846986,-2168.58,0.0001323,2]
[337925183,1726207846996,-500.0,0.0001323,2]
[337925185,1726207847006,-500.0,0.0001323,2]
[337925187,1726207847015,-1610.77,0.0001323,2]
[337925189,1726207847025,-1578.52,0.0001323,2]
[337925191,1726207847034,-991.16,0.0001323,2]
[337925192,1726207847044,-1755.89,0.0001323,2]
[337925194,1726207847054,-500.0,0.0001323,2]
[337925196,1726207847064,-4137.78,0.0001323,2]
[337925198,1726207847074,-710.74,0.0001323,2]
[337925200,1726207847083,-3611.82,0.0001323,2]
[337925202,1726207847092,-1582.96,0.0001323,2]
[337925204,1726207847101,-3006.27,0.0001323,2]
[337925206,1726207847110,-990.25,0.0001323,2]
[337925208,1726207847119,-1355.63,0.0001323,2]
[337925210,1726207847128,-2394.09,0.0001323,2]
[337925211,1726207847137,-2186.47,0.0001323,2]
[337925213,1726207847146,-500.0,0.0001323,2]
[337925215,1726207847155,-1174.7,0.0001323,2]
[337925217,1726207847165,-1755.23,0.0001323,2]
[337925219,1726207847174,-1827.91,0.0001323,2]
[337925221,1726207847183,-903.53,0.0001323,2]
[337925223,1726207847192,-500.0,0.0001323,2]
[337925225,1726207847200,-901.57,0.0001323,2]
[337925227,1726207847210,-849.96,0.0001323,2]
[337925229,1726207847219,-2008.45,0.0001323,2]
[337925231,1726207847228,-1026.83,0.0001323,2]
[337925233,1726207847237,-3173.88,0.0001323,2]
[337925235,1726207847246,-1917.63,0.0001323,2]
[337925237,1726207847255,-741.5,0.0001323,2]
[337925239,1726207847265,-500.0,0.0001323,2]
[337925241,1726207847275,-2883.01,0.0001323,2]
[337925243,1726207847284,-2235.92,0.0001323,2]
[337925245,1726207847293,-500.0,0.0001323,2]
[337925247,1726207847302,-866.48,0.0001323,2]
[337925249,1726207847311,-3749.94,0.0001323,2]
[337925251,1726207847322,-764.3,0.0001323,2]
[337925253,1726207847331,-2582.0,0.0001323,2]
[337925255,1726207847340,-1741.2,0.0001323,2]
[337925256,1726207847349,-1998.95,0.0001323,2]
[337925258,1726207847358,-500.0,0.0001323,2]
[337925260,1726207847368,-2252.07,0.0001323,2]
[337925262,1726207847377,-500.0,0.0001323,2]
[337925264,1726207847386,-2274.3,0.0001323,2]
[337925266,1726207847396,-4179.74,0.0001323,2]
[337925268,1726207847405,-500.0,0.0001323,2]
[337925270,1726207847414,-1853.09,0.0001323,2]
[337925272,1726207847423,-273.14488115,0.0001323,2]
[337925274,1726207847432,-500.0,0.0001323,2]
[337925276,1726207847442,-776.79,0.0001323,2]
[337925278,1726207847451,-1622.46,0.0001323,2]
[337925280,1726207847461,-2217.17,0.0001323,2]
[337925283,1726207847472,-1359.11,0.0001323,2]
[337925285,1726207847482,-500.0,0.0001323,2]
[337925287,1726207847492,-1261.5,0.0001323,2]
[337925289,1726207847503,-1258.27,0.0001323,2]
[337925291,1726207847513,-709.66,0.0001323,2]
[337925293,1726207847524,-2888.25,0.0001323,2]
[337925295,1726207847534,-574.29,0.0001323,2]
[337925297,1726207847543,-1568.79,0.0001323,2]
[337925299,1726207847552,-2177.36,0.0001323,2]
[337925301,1726207847561,-1943.66,0.0001323,2]
[337925303,1726207847571,-500.0,0.00013231,2]
[337925305,1726207847580,-500.0,0.00013231,2]
[337925307,1726207847589,-500.0,0.00013231,2]
[337925309,1726207847599,-500.0,0.00013231,2]
[337925311,1726207847608,-500.0,0.00013231,2]
[337925313,1726207847617,-500.0,0.00013231,2]
[337925315,1726207847627,-500.0,0.00013231,2]
[337925317,1726207847637,-500.0,0.00013231,2]
[337925319,1726207847646,-2698.15,0.00013231,2]
[337925321,1726207847655,-500.0,0.00013231,2]
[337925323,1726207847665,-1619.86,0.00013231,2]
[337925325,1726207847674,-1586.6,0.00013231,2]
[337925327,1726207847685,-500.0,0.00013231,2]
[337925329,1726207847697,-814.02,0.00013231,2]
[337925331,1726207847706,-1719.9,0.00013231,2]
[337925333,1726207847717,-646.24,0.00013231,2]
[337925335,1726207847727,-940.8,0.00013231,2]
[337925337,1726207847736,-500.0,0.00013231,2]
[337925339,1726207847745,-500.0,0.00013231,2]
[337925340,1726207847755,-2780.02,0.00013231,2]
[337925342,1726207847765,-991.55,0.00013231,2]
[337925344,1726207847776,-3182.62,0.00013231,2]
[337925346,1726207847794,-1820.52,0.00013231,2]
[337925349,1726207847805,-4033.44,0.00013231,2]
[337925351,1726207847815,-541.76,0.00013231,2]
[337925353,1726207847824,-2662.49,0.00013231,2]
[337925367,1726207847950,-697.73,0.00013231,2]
[337925371,1726207847977,-2366.24,0.00013231,2]
[337925374,1726207847993,-500.0,0.00013231,2]
[337925376,1726207848003,-500.0,0.00013231,2]
[337925378,1726207848012,-2066.88,0.00013231,2]
[337925380,1726207848023,-3032.62,0.00013231,2]
[337925382,1726207848032,-500.0,0.00013231,2]
[337925383,1726207848041,-3440.83,0.00013231,2]
[337925385,1726207848050,-587.37,0.00013231,2]
[337925387,1726207848059,-500.0,0.00013231,2]
[337925389,1726207848069,-1149.25,0.00013231,2]
[337925391,1726207848078,-500.0,0.00013231,2]
[337925393,1726207848087,-2007.79,0.00013231,2]
[337925395,1726207848096,-500.0,0.00013231,2]
[337925396,1726207848105,-500.0,0.00013231,2]
[337925398,1726207848114,-535.29,0.00013231,2]
[337925400,1726207848123,-500.0,0.00013231,2]
[337925402,1726207848132,-3900.82,0.00013231,2]
[337925404,1726207848142,-564.36,0.00013231,2]
[337925406,1726207848151,-887.43,0.00013231,2]
[337925408,1726207848160,-823.78,0.00013231,2]
[337925410,1726207848169,-500.0,0.00013231,2]
[337925412,1726207848179,-1971.82458,0.0001327,2]
[337925414,1726207848188,-191.628,0.00013293,2]
[337925416,1726207848198,-410.33457968,0.00013403,2]
[337925417,1726207848207,-1971.82459,0.0001343,2]
[337925419,1726207848216,-500.0,0.00013501,2]
[337925421,1726207848226,-740.86,0.00013501,2]
[337925423,1726207848235,-500.0,0.00013501,2]
[337925425,1726207848245,-577.5,0.00013502,2]
[337925427,1726207848254,-47356.9,0.00013502,2]
[337925429,1726207848263,-6669.17,0.00013502,2]
[337925431,1726207848274,-2780.8,0.00013502,2]
[337925433,1726207848283,-500.0,0.00013502,2]
[337925434,1726207848293,-1371.45,0.00013502,2]
[337925436,1726207848302,-1644.43,0.00013502,2]
[337925438,1726207848311,-601.64,0.00013502,2]
[337925440,1726207848323,-805.65,0.00013502,2]
[337925442,1726207848333,-2471.22,0.00013502,2]
[337925444,1726207848343,-3998.73,0.00013502,2]
[337925446,1726207848352,-1893.7,0.00013502,2]
[337925448,1726207848362,-2685.85,0.00013502,2]
[337925450,1726207848372,-2355.68,0.00013502,2]
[337925452,1726207848381,-1290.2,0.00013502,2]
[337925454,1726207848390,-3090.69,0.00013502,2]
[337925456,1726207848401,-10575.95,0.00013502,2]
[337925458,1726207848410,-2228.93,0.00013502,2]
[337925460,1726207848419,-1924.11,0.00013502,2]
[337925462,1726207848428,-3999.61,0.00013502,2]
[337925464,1726207848437,-2756.63,0.00013502,2]
[337925466,1726207848447,-2039.83,0.00013502,2]
[337925468,1726207848456,-4382.07,0.00013502,2]
[337925469,1726207848465,-2563.61,0.00013502,2]
[337925471,1726207848475,-697.17,0.00013502,2]
[337925473,1726207848484,-3668.01,0.00013502,2]
[337925475,1726207848494,-15000.85,0.00013502,2]
[337925477,1726207848503,-1017.52,0.00013502,2]
[337925479,1726207848513,-2679.4,0.00013502,2]
[337925481,1726207848522,-2417.39,0.00013502,2]
[337925483,1726207848532,-39510.23,0.00013502,2]
[337925485,1726207848541,-6415.55,0.00013502,2]
[337925487,1726207848551,-2131.91,0.00013502,2]
[337925489,1726207848560,-2033.36,0.00013502,2]
[337925491,1726207848569,-2847.91,0.00013502,2]
[337925493,1726207848579,-2357.11,0.00013502,2]
[337925495,1726207848588,-1449.8,0.00013502,2]
[337925496,1726207848598,-8256.5,0.00013502,2]
[337925497,1726207848607,-500.0,0.00013502,2]
[337925498,1726207848617,-9236.73,0.00013502,2]
[337925499,1726207848626,-1373.91,0.00013502,2]
[337925500,1726207848635,-3499.59,0.00013502,2]
[337925501,1726207848645,-1033.06,0.00013502,2]
[337925502,1726207848655,-2381.27,0.00013502,2]
[337925503,1726207848664,-3127.01,0.00013502,2]
[337925504,1726207848673,-3835.54,0.00013502,2]
[337925505,1726207848683,-7411.59,0.00013502,2]
[337925506,1726207848693,-6205.84,0.00013502,2]
[337925507,1726207848703,-1195.4,0.00013502,2]
[337925508,1726207848713,-693.82,0.00013502,2]
[337925509,1726207848722,-6244.27,0.00013502,2]
[337925511,1726207848731,-390.51203306,0.00013502,2]
[337925513,1726207848741,-8864.5,0.00013502,2]
[337925515,1726207848751,-667.48,0.00013502,2]
[337925517,1726207848761,-1060.76,0.00013502,2]
[337925519,1726207848770,-897.04,0.00013502,2]
[337925521,1726207848780,-33287.28527994,0.00013502,2]
[337925523,1726207848789,-1814.79,0.00013503,2]
[337925525,1726207848799,-500.0,0.00013503,2]
[337925527,1726207848808,-500.0,0.00013503,2]
[337925529,1726207848818,-500.0,0.00013503,2]
[337925531,1726207848827,-500.0,0.00013503,2]
[337925533,1726207848836,-954.6,0.00013503,2]
[337925535,1726207848846,-2167.77,0.00013503,2]
[337925537,1726207848855,-500.0,0.00013503,2]
[337925539,1726207848864,-1160.48,0.00013503,2]
[337925541,1726207848873,-500.0,0.00013503,2]
[337925542,1726207848883,-500.0,0.00013503,2]
[337925544,1726207848892,-1233.86,0.00013503,2]
[337925546,1726207848903,-500.0,0.00013503,2]
[337925548,1726207848912,-500.0,0.00013503,2]
[337925550,1726207848921,-2268.65,0.00013503,2]
[337925552,1726207848931,-500.0,0.00013503,2]
[337925554,1726207848940,-500.0,0.00013503,2]
[337925556,1726207848950,-721.99,0.00013503,2]
[337925558,1726207848959,-638.65,0.00013503,2]
[337925560,1726207848969,-580.24,0.00013503,2]
[337925562,1726207848978,-1859.7,0.00013503,2]
[337925564,1726207848989,-500.0,0.00013503,2]
[337925566,1726207848998,-2169.41,0.00013503,2]
[337925568,1726207849008,-500.0,0.00013503,2]
[337925570,1726207849017,-500.0,0.00013503,2]
[337925572,1726207849027,-500.0,0.00013503,2]
[337925574,1726207849036,-500.0,0.00013503,2]
[337925576,1726207849046,-500.0,0.00013503,2]
[337925578,1726207849055,-500.0,0.00013503,2]
[337925580,1726207849064,-500.0,0.00013503,2]
[337925582,1726207849074,-500.0,0.00013503,2]
[337925584,1726207849084,-2454.4,0.00013503,2]
[337925586,1726207849093,-1762.89,0.00013503,2]
[337925588,1726207849102,-500.0,0.00013503,2]
[337925590,1726207849112,-2427.84,0.00013503,2]
[337925592,1726207849122,-527.98,0.00013503,2]
[337925594,1726207849131,-500.0,0.00013503,2]
[337925596,1726207849140,-500.0,0.00013503,2]
[337925598,1726207849150,-500.0,0.00013503,2]
[337925600,1726207849159,-2449.58,0.00013503,2]
[337925602,1726207849168,-616.84,0.00013503,2]
[337925604,1726207849178,-500.0,0.00013503,2]
[337925606,1726207849187,-500.0,0.00013503,2]
[337925608,1726207849196,-1200.04,0.00013503,2]
[337925610,1726207849205,-507.12670598,0.00013503,2]
[337925611,1726207849215,-500.0,0.00013503,2]
[337925613,1726207849225,-500.0,0.00013503,2]
[337925615,1726207849235,-500.0,0.00013503,2]
[337925617,1726207849245,-500.0,0.00013503,2]
[337925619,1726207849254,-502.2188731,0.00013503,2]
[337925621,1726207849264,-1843.23,0.00013503,2]
[337925623,1726207849273,-1049.64,0.00013503,2]
[337925625,1726207849292,-500.0,0.00013503,2]
[337925627,1726207849302,-500.0,0.00013503,2]
[337925629,1726207849311,-716.26,0.00013503,2]
[337925631,1726207849322,-1314.98,0.00013503,2]
[337925633,1726207849333,-706.12,0.00013503,2]
[337925635,1726207849342,-2731.45,0.00013503,2]
[337925636,1726207849352,-1334.63,0.00013503,2]
[337925638,1726207849363,-500.0,0.00013503,2]
[337925640,1726207849373,-3186.47,0.00013503,2]
[337925642,1726207849383,-500.0,0.00013503,2]
[337925644,1726207849392,-1915.16,0.00013503,2]
[337925646,1726207849401,-968.58,0.00013503,2]
[337925648,1726207849413,-500.0,0.00013503,2]
[337925650,1726207849424,-416.92989274,0.00013503,2]
[337925652,1726207849433,-500.0,0.00013503,2]
[337925654,1726207849442,-1992.66,0.00013503,2]
[337925656,1726207849452,-565.35,0.00013503,2]
[337925658,1726207849462,-500.0,0.00013503,2]